fUSD/lending_fUSD_20240728
["ID","MTS","AMOUNT","RATE_DAILY","PERIOD"]
[333448710,1722135034153,-621.48026869,0.00010999,2]
[333448711,1722135034163,-621.48026869,0.00010999,2]
[333448712,1722135034173,-621.48026869,0.00010999,2]
[333448713,1722135034182,-621.48026869,0.00010999,2]
[333448714,1722135034192,-1251.89809805,0.00010999,2]
[333448715,1722135034201,-1251.89809805,0.00010999,2]
[333448716,1722135034211,-1251.89809805,0.00010999,2]
[333448717,1722135034220,-1251.89809805,0.00010999,2]
[333448718,1722135034230,-1251.89809805,0.00010999,2]
[333448719,1722135034240,-1251.89809805,0.00010999,2]
[333448720,1722135034249,-1251.89809805,0.00010999,2]
[333448721,1722135034259,-1251.89809805,0.00010999,2]
[333448722,1722135034269,-1251.89809805,0.00010999,2]
[333448723,1722135034279,-1251.89809805,0.00010999,2]
[333448724,1722135034289,-1251.89809805,0.00010999,2]
[333448725,1722135034299,-1251.89809805,0.00010999,2]
[333448726,1722135034309,-1251.89809805,0.00010999,2]
[333448727,1722135034318,-607.96982807,0.00010999,2]
[333448728,1722135034330,-1251.89809805,0.00010999,2]
[333448729,1722135034339,-607.96982807,0.00010999,2]
[333448730,1722135034349,-607.96982807,0.00010999,2]
[333448731,1722135034358,-1251.89809805,0.00010999,2]
[333448732,1722135034368,-607.96982807,0.00010999,2]
[333448733,1722135034378,-1251.89809805,0.00010999,2]
[333448734,1722135034387,-607.96982807,0.00010999,2]
[333448735,1722135034397,-1251.89809805,0.00010999,2]
[333448736,1722135034406,-607.96982807,0.00010999,2]
[333448737,1722135034416,-1251.89809805,0.00010999,2]
[333448738,1722135034425,-1251.89809805,0.00010999,2]
[333448739,1722135034435,-607.96982807,0.00010999,2]
[333448740,1722135034445,-607.96982807,0.00010999,2]
[333448741,1722135034454,-607.96982807,0.00010999,2]
[333448742,1722135034464,-607.96982807,0.00010999,2]
[333448743,1722135034473,-607.96982807,0.00010999,2]
[333448744,1722135034483,-607.96982807,0.00010999,2]
[333448745,1722135034492,-607.96982807,0.00010999,2]
[333448746,1722135034501,-607.96982807,0.00010999,2]
[333448747,1722135034511,-607.96982807,0.00010999,2]
[333448748,1722135034521,-607.96982807,0.00010999,2]
[333448749,1722135034531,-607.96982807,0.00010999,2]
[333448750,1722135034540,-607.96982807,0.00010999,2]
[333448751,1722135034550,-1321.44799238,0.00010999,2]
[333448752,1722135034559,-1321.44799238,0.00010999,2]
[333448753,1722135034569,-636.11657936,0.00010999,2]
[333448754,1722135034579,-636.11657936,0.00010999,2]
[333448755,1722135034589,-636.11657936,0.00010999,2]
[333448756,1722135034598,-636.11657936,0.00010999,2]
[333448757,1722135034607,-636.11657936,0.00010999,2]
[333448758,1722135034617,-636.11657936,0.00010999,2]
[333448759,1722135034627,-1321.44799237,0.00010999,2]
[333448760,1722135034636,-595.0,0.00011,2]
[333448761,1722135034647,-5000.0,0.00011,2]
[333448762,1722135034658,-5000.0,0.00011,2]
[333448763,1722135034669,-5000.0,0.00011,2]
[333448764,1722135034679,-548.0,0.00011,2]
[333448765,1722135034688,-5000.0,0.00011,2]
[333448766,1722135034699,-5000.0,0.00011,2]
[333448767,1722135034708,-35881.84645702,0.00011,10]
[333448768,1722135034717,-11833.86724391,0.00011,2]
[333448769,1722135034759,-244.75244225,0.00010999,2]
[333448770,1722135034769,-500.0,0.00010999,2]
[333448771,1722135034778,-500.0,0.00010999,2]
[333448772,1722135034788,-15489.52083016,0.00011,2]
[333448774,1722135038176,-165.01507447,0.00010999,2]
[333448775,1722135038185,-500.0,0.00010999,2]
[333448776,1722135038195,-137.68462553,0.00010999,2]
[333448777,1722135038401,-112.96078578,0.00010999,2]
[333448778,1722135038410,-227.3511992,0.00010999,2]
[333448779,1722135038422,-272.6488008,0.00010999,2]
[333448780,1722135038432,-500.0,0.00010999,2]
[333448781,1722135038442,-500.0,0.00010999,2]
[333448782,1722135038451,-465.69334483,0.00010999,2]
[333448921,1722135040135,-34.30665517,0.00010999,2]
[333448925,1722135040144,-361.17373661,0.00010999,2]
[333448928,1722135040155,-138.82626339,0.00010999,2]
[333448931,1722135040164,-416.98019896,0.00010999,2]
[333448935,1722135040176,-83.01980104,0.00010999,2]
[333448938,1722135040185,-491.01378814,0.00010999,2]
[333448959,1722135040330,-8.98621186,0.00010999,2]
[333448961,1722135040340,-695.01378804,0.00011,2]
[333448963,1722135040351,-6057.80960519,0.00011,2]
[333448965,1722135040362,-960.10966501,0.00011,2]
[333448967,1722135040373,-5859.33696734,0.00011,2]
[333448969,1722135040384,-1489.433276,0.00011,2]
[333448984,1722135040521,-7172.93679144,0.00011,2]
[333448986,1722135040533,-1247.19195163,0.00011,2]
[333448988,1722135040544,-731.17635156,0.00011,2]
[333448990,1722135040555,-547.52749393,0.00011,2]
[333448992,1722135040566,-763.48000001,0.00011,2]
[333448994,1722135040577,-730.07124766,0.00011,2]
[333449247,1722135043204,-322.15638281,0.00010447,2]
[333449251,1722135043214,-7890.17097438,0.00011,2]
[333449255,1722135043225,-294.248398,0.00011,2]
[333449259,1722135043237,-333.71131815,0.00011,2]
[333449262,1722135043249,-301.616,0.00011,2]
[333449264,1722135043260,-54455.79681227,0.00011,2]
[333449266,1722135043271,-815.33898563,0.00011,2]
[333449269,1722135043281,-1023.82317081,0.00011,2]
[333449271,1722135043293,-328.7496445,0.00011,2]
[333449273,1722135043303,-1747.575,0.00011,2]
[333449284,1722135043399,-43568.95625817,0.00011,2]
[333449286,1722135043410,-23918.65996702,0.00011,2]
[333449288,1722135043420,-388290.32806842,0.00011,2]
[333449290,1722135043432,-559.40606601,0.00011,2]
[333449307,1722135043605,-1237.14245189,0.00011,2]
[333449309,1722135043616,-840.64392545,0.00011,2]
[333449312,1722135043627,-344.76734899,0.00011,2]
[333449540,1722135046408,-500.0,0.00010999,2]
[333449543,1722135046418,-500.0,0.00010999,2]
[333449546,1722135046427,-500.0,0.00010999,2]
[333449549,1722135046436,-274.86208729,0.00010999,2]
[333449569,1722135047194,-225.13791271,0.00010999,2]
[333449571,1722135047204,-500.0,0.00010999,2]
[333449573,1722135047213,-500.0,0.00010999,2]
[333449575,1722135047223,-4144.93757841,0.00011,2]
[333449578,1722135047234,-1089.88117537,0.00011,2]
[333449580,1722135047245,-25492.68481151,0.00011,2]
[333449582,1722135047255,-6000.0,0.00011,2]
[333449584,1722135047266,-7599.63402511,0.00011,2]
[333449586,1722135047277,-1383.40857251,0.00011,2]
[333449588,1722135047289,-2497.79507697,0.00011,2]
[333449590,1722135047300,-897.67002937,0.00011,2]
[333449591,1722135047311,-371.58858451,0.00011,2]
[333449592,1722135047325,-33869.41821226,0.00011,2]
[333449593,1722135047336,-2008.06228133,0.00011,2]
[333449594,1722135047350,-11173.27156439,0.00011,2]
[333449595,1722135047360,-327.63087793,0.00011,2]
[333449596,1722135047374,-1462.76416002,0.00011,2]
[333449597,1722135047385,-1983.33220064,0.00011,2]
[333449598,1722135047396,-6608.37094698,0.00011,2]
[333449599,1722135047406,-824.59977352,0.00011,2]
[333449600,1722135047417,-375.76220257,0.00011,2]
[333449601,1722135047428,-7511.43041172,0.00011,2]
[333449602,1722135047439,-1002.44274149,0.00011,2]
[333449603,1722135047450,-14237.37580089,0.00011,2]
[333449604,1722135047461,-1313.87865291,0.00011,2]
[333449605,1722135047472,-2230.76281627,0.00011,2]
[333449606,1722135047483,-2372.81520537,0.00011,2]
[333449871,1722136232309,-708.3,8.219e-05,2]
[333449873,1722136232318,-250.0,9.938e-05,2]
[333449875,1722136232327,-3.74266602,9.942e-05,2]
[333449884,1722136232577,-1071.32430337,9.942e-05,2]
[333449885,1722136232588,-829.59060237,9.942e-05,2]
[333449886,1722136232601,-95.34242824,9.942e-05,2]
[333449887,1722136232611,-4454.22,9.95e-05,2]
[333449888,1722136232620,-171.47,9.97e-05,2]
[333449889,1722136232631,-600.0,9.973e-05,2]
[333449890,1722136232640,-155.0,0.0001,2]
[333449891,1722136232650,-400.0,0.00010023,2]
[333449892,1722136232659,-708.3,0.00010476,2]
[333449893,1722136232668,-3.49197628,0.00010744,2]
[333449894,1722136232828,-187.30486672,0.00010744,2]
[333449895,1722136232837,-300.0,0.00010798,2]
[333449896,1722136232846,-269.936,0.00010799,2]
[333449897,1722136232855,-365.0,0.0001085,2]
[333449898,1722136232866,-3305.72678109,0.00010889,2]
[333449899,1722136232877,-150.0,0.00010897,2]
[333449900,1722136232887,-260705.15315359,0.00010898,2]
[333449901,1722136232896,-94482.4181,0.00010899,2]
[333449902,1722136232906,-151.0,0.00010899,2]
[333449903,1722136232915,-151.0,0.00010899,2]
[333449904,1722136232926,-19922.66814037,0.00010899,2]
[333449905,1722136232935,-19922.66814036,0.00010899,2]
[333449906,1722136232944,-19922.66814036,0.00010899,2]
[333449907,1722136232955,-19922.66814036,0.00010899,2]
[333449908,1722136232964,-19922.66814036,0.00010899,2]
[333449909,1722136232973,-36895.58495367,0.00010899,2]
[333449911,1722136232982,-19922.66814036,0.00010899,2]
[333449913,1722136232991,-36895.5849536,0.00010899,2]
[333449914,1722136233002,-19922.66814036,0.00010899,2]
[333449916,1722136233011,-36895.5849536,0.00010899,2]
[333449918,1722136233020,-1146.1224,0.000109,2]
[333449920,1722136233029,-151.0,0.000109,2]
[333449921,1722136233038,-151.0,0.000109,2]
[333449923,1722136233049,-1006.0,0.000109,2]
[333449925,1722136233058,-500.0,0.00010912,2]
[333449927,1722136233067,-258.56139209,0.00010945,2]
[333449928,1722136233076,-500.0,0.00010958,2]
[333449930,1722136233084,-500.0,0.00010958,2]
[333449932,1722136233094,-500.0,0.00010958,2]
[333449933,1722136233103,-500.0,0.00010958,2]
[333449935,1722136233112,-500.0,0.00010958,2]
[333449937,1722136233122,-519.14,0.00010958,2]
[333449939,1722136233132,-500.0,0.00010958,2]
[333449941,1722136233145,-500.0,0.00010958,2]
[333449943,1722136233154,-500.0,0.00010958,2]
[333449945,1722136233163,-500.0,0.00010958,2]
[333449946,1722136233171,-525.32849974,0.00010958,2]
[333449948,1722136233182,-500.0,0.00010958,2]
[333449950,1722136233192,-500.0,0.00010958,2]
[333449952,1722136233201,-500.0,0.00010958,2]
[333449953,1722136233211,-500.0,0.00010958,2]
[333449955,1722136233221,-500.0,0.00010958,2]
[333449957,1722136233232,-500.0,0.00010958,2]
[333449959,1722136233241,-500.0,0.00010958,2]
[333449961,1722136233250,-500.0,0.00010958,2]
[333449962,1722136233259,-500.0,0.00010958,2]
[333449964,1722136233268,-500.0,0.00010958,2]
[333449966,1722136233277,-391.17537219,0.00010958,2]
[333449967,1722136233286,-506.24554112,0.00010958,2]
[333449969,1722136233296,-500.0,0.00010958,2]
[333449971,1722136233307,-508.49128739,0.00010958,2]
[333449973,1722136233316,-500.0,0.00010958,2]
[333449975,1722136233326,-521.0142154,0.00010958,2]
[333449977,1722136233336,-500.0,0.00010958,2]
[333449979,1722136233345,-523.72987651,0.00010958,2]
[333449980,1722136233355,-500.0,0.00010958,2]
[333449982,1722136233364,-608.29236237,0.00010958,2]
[333449984,1722136233373,-500.0,0.00010958,2]
[333450002,1722136233576,-492.52736933,0.00010958,2]
[333450004,1722136233586,-500.0,0.00010958,2]
[333450005,1722136233596,-511.13753706,0.00010958,2]
[333450007,1722136233605,-500.0,0.00010958,2]
[333450009,1722136233615,-500.0,0.00010958,2]
[333450011,1722136233624,-509.89085273,0.00010958,2]
[333450013,1722136233633,-500.0,0.00010958,2]
[333450015,1722136233642,-500.0,0.00010958,2]
[333450016,1722136233651,-500.0,0.00010958,2]
[333450018,1722136233660,-500.0,0.00010958,2]
[333450020,1722136233669,-520.69215819,0.00010958,2]
[333450022,1722136233679,-500.0,0.00010958,2]
[333450024,1722136233688,-500.0,0.00010958,2]
[333450026,1722136233698,-509.65308774,0.00010958,2]
[333450027,1722136233707,-509.85557735,0.00010958,2]
[333450029,1722136233716,-500.0,0.00010958,2]
[333450031,1722136233725,-512.81534072,0.00010958,2]
[333450033,1722136233735,-500.0,0.00010958,2]
[333450035,1722136233744,-500.0,0.00010958,2]
[333450036,1722136233753,-500.0,0.00010958,2]
[333450038,1722136233763,-519.66072834,0.00010958,2]
[333450040,1722136233772,-500.0,0.00010958,2]
[333450042,1722136233782,-505.29352697,0.00010958,2]
[333450044,1722136233791,-500.0,0.00010958,2]
[333450046,1722136233804,-500.0,0.00010958,2]
[333450048,1722136233813,-500.0,0.00010958,2]
[333450049,1722136233822,-524.44836795,0.00010958,2]
[333450051,1722136233831,-500.0,0.00010958,2]
[333450052,1722136233841,-500.0,0.00010958,2]
[333450053,1722136233850,-500.0,0.00010958,2]
[333450054,1722136233860,-506.24536832,0.00010958,2]
[333450055,1722136233870,-500.0,0.00010958,2]
[333450056,1722136233879,-500.0,0.00010958,2]
[333450057,1722136233888,-512.90478664,0.00010958,2]
[333450058,1722136233898,-508.52619446,0.00010958,2]
[333450059,1722136233908,-500.0,0.00010958,2]
[333450060,1722136233917,-500.0,0.00010958,2]
[333450061,1722136233927,-500.0,0.00010958,2]
[333450062,1722136233937,-507.14190018,0.00010958,2]
[333450063,1722136233946,-500.0,0.00010958,2]
[333450064,1722136233956,-523.19934532,0.00010958,2]
[333450065,1722136233966,-500.0,0.00010958,2]
[333450066,1722136233975,-345.65913387,0.00010958,2]
[333450067,1722136233985,-500.0,0.00010958,2]
[333450068,1722136233995,-600.64347966,0.00010958,2]
[333450069,1722136234004,-500.0,0.00010958,2]
[333450070,1722136234013,-508.04686075,0.00010958,2]
[333450071,1722136234023,-500.0,0.00010958,2]
[333450072,1722136234032,-500.0,0.00010958,2]
[333450073,1722136234043,-500.0,0.00010958,2]
[333450074,1722136234057,-500.0,0.00010958,2]
[333450075,1722136234067,-500.0,0.00010958,2]
[333450076,1722136234077,-509.17905644,0.00010958,2]
[333450077,1722136234086,-500.0,0.00010958,2]
[333450078,1722136234095,-513.7890644,0.00010958,2]
[333450079,1722136234105,-500.0,0.00010958,2]
[333450080,1722136234115,-500.0,0.00010958,2]
[333450081,1722136234124,-500.0,0.00010958,2]
[333450082,1722136234136,-525.40905537,0.00010958,2]
[333450083,1722136234146,-500.0,0.00010958,2]
[333450084,1722136234156,-424.2095166,0.00010958,2]
[333450085,1722136234171,-85.48397079,0.00010958,2]
[333450086,1722136234181,-232.21251227,0.00010958,2]
[333450087,1722136234191,-169.96282987,0.00010958,2]
[333450088,1722136234203,-330.03717013,0.00010958,2]
[333450089,1722136234214,-500.0,0.00010958,2]
[333450090,1722136234224,-500.0,0.00010958,2]
[333450091,1722136234233,-514.41660793,0.00010958,2]
[333450092,1722136234243,-500.0,0.00010958,2]
[333450093,1722136234253,-500.0,0.00010958,2]
[333450094,1722136234262,-500.0,0.00010958,2]
[333450095,1722136234271,-500.0,0.00010958,2]
[333450096,1722136234281,-500.0,0.00010958,2]
[333450097,1722136234291,-500.0,0.00010958,2]
[333450098,1722136234304,-511.6881935,0.00010958,2]
[333450099,1722136234313,-508.95530327,0.00010958,2]
[333450100,1722136234323,-500.0,0.00010958,2]
[333450101,1722136234333,-535.26337028,0.00010958,2]
[333450102,1722136234346,-500.0,0.00010958,2]
[333450103,1722136234355,-510.45243113,0.00010958,2]
[333450104,1722136234365,-500.0,0.00010958,2]
[333450105,1722136234375,-514.08337869,0.00010958,2]
[333450106,1722136234385,-500.0,0.00010958,2]
[333450107,1722136234395,-505.21721329,0.00010958,2]
[333450108,1722136234405,-500.0,0.00010958,2]
[333450109,1722136234415,-519.89202302,0.00010958,2]
[333450110,1722136234425,-500.0,0.00010958,2]
[333450111,1722136234435,-555.51672437,0.00010958,2]
[333450112,1722136234445,-500.0,0.00010958,2]
[333450113,1722136234455,-488.55899951,0.00010958,2]
[333450114,1722136234465,-231.47458871,0.00010958,2]
[333450115,1722136234475,-500.0,0.00010958,2]
[333450116,1722136234485,-500.0,0.00010958,2]
[333450117,1722136234495,-532.99644587,0.00010958,2]
[333450118,1722136234505,-522.86684261,0.00010958,2]
[333450119,1722136234514,-322.27539985,0.00010958,2]
[333450120,1722136234524,-500.0,0.00010958,2]
[333450121,1722136234533,-520.28209878,0.00010958,2]
[333450122,1722136234543,-500.0,0.00010958,2]
[333450123,1722136234556,-511.08025661,0.00010958,2]
[333450124,1722136234566,-500.0,0.00010958,2]
[333450125,1722136234576,-506.76321324,0.00010958,2]
[333450126,1722136234586,-500.0,0.00010959,2]
[333450127,1722136234596,-200.0,0.00010959,2]
[333450128,1722136234607,-200.0,0.00010959,2]
[333450129,1722136234617,-250.0,0.00010959,2]
[333450130,1722136234626,-254.768386,0.00010959,2]
[333450131,1722136234636,-254.768386,0.00010959,2]
[333450132,1722136234647,-254.768386,0.00010959,2]
[333450133,1722136234656,-254.768386,0.00010959,2]
[333450134,1722136234666,-227.33918372,0.00010998,2]
[333450135,1722136234675,-386.20464097,0.00010998,2]
[333450136,1722136238682,-3074.637,0.00010899,2]
[333450137,1722136238696,-10219.39772,0.00010899,2]
[333450138,1722136238708,-3175.40155286,0.00010899,2]
[333450139,1722136238720,-499.20858454,0.00010899,2]
[333450140,1722136238732,-1412.32316243,0.00010899,2]
[333450143,1722136238767,-1541.70012053,0.00010899,2]
[333450145,1722136238776,-1789.71685871,0.00010899,2]
[333450147,1722136238788,-35105.86809489,0.00010899,2]
[333450149,1722136238797,-9017.3158182,0.00010899,2]
[333450151,1722136238809,-10905.35232216,0.00010899,2]
[333450153,1722136238818,-113.79535903,0.00010998,2]
[333450155,1722136238827,-500.0,0.00010998,2]
[333450157,1722136238836,-500.0,0.00010998,2]
[333450158,1722136238845,-500.0,0.00010998,2]
[333450159,1722136238854,-500.0,0.00010998,2]
[333450160,1722136238863,-500.0,0.00010998,2]
[333450161,1722136238872,-500.0,0.00010998,2]
[333450162,1722136238882,-500.0,0.00010998,2]
[333450163,1722136238891,-500.0,0.00010998,2]
[333450164,1722136238900,-500.0,0.00010998,2]
[333450165,1722136238909,-500.0,0.00010998,2]
[333450166,1722136238918,-500.0,0.00010998,2]
[333450167,1722136238927,-500.0,0.00010998,2]
[333450168,1722136238936,-500.0,0.00010998,2]
[333450169,1722136238945,-500.0,0.00010998,2]
[333450170,1722136238954,-414.98147381,0.00010998,2]
[333450183,1722136240651,-85.01852619,0.00010998,2]
[333450184,1722136240661,-500.0,0.00010998,2]
[333450185,1722136240671,-500.0,0.00010998,2]
[333450186,1722136240680,-500.0,0.00010998,2]
[333450187,1722136240690,-500.0,0.00010998,2]
[333450188,1722136240699,-500.0,0.00010998,2]
[333450189,1722136240708,-397.66119835,0.00010998,2]
[333450190,1722136240717,-500.0,0.00010998,2]
[333450191,1722136240726,-510.95125233,0.00010998,2]
[333450192,1722136240735,-500.0,0.00010998,2]
[333450193,1722136240744,-500.0,0.00010998,2]
[333450194,1722136240753,-500.0,0.00010998,2]
[333450195,1722136240762,-500.0,0.00010998,2]
[333450196,1722136240772,-510.91774888,0.00010998,2]
[333450197,1722136240780,-510.24543403,0.00010998,2]
[333450198,1722136240790,-548.29244133,0.00010998,2]
[333450199,1722136240799,-508.34238869,0.00010998,2]
[333450200,1722136240809,-563.35409543,0.00010998,2]
[333450201,1722136240818,-500.0,0.00010998,2]
[333450202,1722136240828,-524.16213249,0.00010998,2]
[333450203,1722136240837,-507.07434577,0.00010998,2]
[333450205,1722136240846,-512.20271129,0.00010998,2]
[333450206,1722136240856,-500.0,0.00010998,2]
[333450208,1722136240865,-513.12980533,0.00010998,2]
[333450210,1722136240874,-500.0,0.00010998,2]
[333450212,1722136240883,-503.8336621,0.00010998,2]
[333450214,1722136240893,-500.0,0.00010998,2]
[333450216,1722136240902,-500.0,0.00010998,2]
[333450218,1722136240912,-500.0,0.00010998,2]
[333450220,1722136240921,-500.0,0.00010998,2]
[333450222,1722136240930,-190.50377157,0.00010998,2]
[333450224,1722136240940,-500.0,0.00010998,2]
[333450226,1722136240949,-500.0,0.00010998,2]
[333450228,1722136240958,-276.95665704,0.00010998,2]
[333450230,1722136240967,-405.52820688,0.00010998,2]
[333450454,1722136243958,-6463.52098676,0.00010899,2]
[333450455,1722136243970,-768.46634336,0.00010899,2]
[333450456,1722136243981,-2613.95802202,0.00010899,2]
[333450457,1722136246425,-891.94150928,0.00010899,2]
[333450458,1722136246437,-1837.56946926,0.00010899,2]
[333450459,1722136246449,-353.504,0.00010899,2]
[333450460,1722136247161,-6190.06320505,0.00010899,2]
[333450461,1722136247175,-794.0033412,0.00010899,2]
[333450462,1722136247187,-442.82396974,0.00010899,2]
[333450463,1722136247199,-905.7663,0.00010899,2]
[333450464,1722136247211,-15633.96780693,0.00010899,2]
[333450465,1722136247224,-36895.5849536,0.00010899,2]
[333450466,1722136247234,-19922.66814036,0.000109,2]
[333450467,1722136247244,-104.69575027,0.00010998,2]
[333450468,1722136247254,-599.48827816,0.00010998,2]
[333450469,1722136247264,-500.0,0.00010998,2]
[333450470,1722136247273,-169.49718826,0.00010998,2]
[333450471,1722136247283,-405.01047158,0.00010998,2]
[333450472,1722136247293,-588.92621593,0.00010998,2]
[333450473,1722136247302,-500.0,0.00010998,2]
[333450474,1722136247314,-146.62411196,0.00010998,2]
[333450475,1722136247326,-353.37588804,0.00010998,2]
[333450476,1722136247335,-249.57835773,0.00010998,2]
[333450477,1722136247345,-500.0,0.00010998,2]
[333450478,1722136247354,-1933.13008684,0.00010999,2]
[333450479,1722136247363,-513.34170491,0.00010999,2]
[333450480,1722136247373,-506.58533276,0.00010999,2]
[333450481,1722136247382,-515.30476527,0.00010999,2]
[333450482,1722136247393,-513.23653702,0.00010999,2]
[333450483,1722136247402,-511.51457642,0.00010999,2]
[333450484,1722136247411,-500.0,0.00010999,2]
[333450485,1722136247421,-484.78882637,0.00010999,2]
[333450486,1722136247430,-510.11243427,0.00010999,2]
[333450487,1722136247440,-480.6544949,0.00010999,2]
[333450488,1722136247450,-507.42186055,0.00010999,2]
[333450489,1722136247459,-545.12435766,0.00010999,2]
[333450490,1722136247468,-168.72410305,0.00010999,2]
[333450536,1722137435384,-783.0,8.218e-05,2]
[333450538,1722137435395,-196.56350179,8.219e-05,2]
[333450539,1722137435404,-627.47018711,8.219e-05,2]
[333450540,1722137435414,-150.0,8.219e-05,2]
[333450541,1722137435425,-300.0,8.219e-05,2]
[333450542,1722137435434,-700.56,8.219e-05,2]
[333450543,1722137435443,-301.34786636,8.22e-05,2]
[333450544,1722137435452,-179.0171482,8.22e-05,2]
[333450545,1722137435462,-199.61912168,8.22e-05,2]
[333450546,1722137435471,-155.014849,8.22e-05,2]
[333450547,1722137435481,-163.0156154,8.22e-05,2]
[333450548,1722137435490,-198.0189684,8.22e-05,2]
[333450549,1722137435501,-152.014849,8.22e-05,2]
[333450550,1722137435510,-151.0144658,8.22e-05,2]
[333450551,1722137435520,-199.81933986,8.22e-05,2]
[333450552,1722137435528,-200.01916,8.22e-05,2]
[333450553,1722137435537,-150.01437,8.22e-05,2]
[333450554,1722137435549,-152.0145616,8.22e-05,2]
[333450555,1722137435558,-160.015328,8.22e-05,2]
[333450556,1722137435567,-158.0151364,8.22e-05,2]
[333450557,1722137435764,-200.01916,8.22e-05,2]
[333450558,1722137435780,-300.02874,8.22e-05,2]
[333450559,1722137435789,-150.01437,8.22e-05,2]
[333450560,1722137435799,-155.014849,8.22e-05,2]
[333450561,1722137435808,-200.01916,8.22e-05,2]
[333450562,1722137435817,-160.015328,8.22e-05,2]
[333450563,1722137435826,-200.0,8.22e-05,2]
[333450564,1722137435835,-158.75860761,8.22e-05,2]
[333450565,1722137435844,-160.015328,8.22e-05,2]
[333450566,1722137435853,-160.015328,8.22e-05,2]
[333450567,1722137435863,-160.015328,8.22e-05,2]
[333450568,1722137435872,-154.81482984,8.22e-05,2]
[333450569,1722137435881,-420.0,9.041e-05,2]
[333450570,1722137435890,-374.35501794,9.59e-05,2]
[333450571,1722137435899,-630.46571958,9.7e-05,2]
[333450572,1722137435908,-520.0,9.719e-05,2]
[333450573,1722137435918,-250.0,9.785e-05,2]
[333450574,1722137435929,-193.02,9.869e-05,2]
[333450575,1722137435939,-6982.43,9.878e-05,2]
[333450576,1722137435949,-270.82770935,9.888e-05,2]
[333450577,1722137435959,-480.0,9.911e-05,2]
[333450578,1722137435968,-587.0,9.945e-05,2]
[333450579,1722137435978,-751.42,9.952e-05,2]
[333450580,1722137435987,-155.0,0.0001,2]
[333450581,1722137435997,-196.56350179,0.00010274,2]
[333450582,1722137436007,-302.54,0.00010374,2]
[333450583,1722137436018,-2785.08994505,0.00010447,2]
[333450584,1722137436027,-700.56,0.00010466,2]
[333450585,1722137436038,-16887.27,0.00010475,2]
[333450586,1722137436048,-25010.87,0.00010475,2]
[333450587,1722137436058,-305.4426,0.00010798,2]
[333450588,1722137436069,-14011.1742,0.00010798,2]
[333450589,1722137436079,-412.3787,0.00010799,2]
[333450590,1722137436089,-2500.0,0.00010799,2]
[333450591,1722137436099,-206.1664,0.00010858,2]
[333450592,1722137436109,-2959.01075002,0.00010889,2]
[333450593,1722137436119,-1516.482,0.00010899,2]
[333450594,1722137436129,-1256.64795922,0.00010899,2]
[333450595,1722137436141,-18678.75653639,0.00010899,2]
[333450596,1722137436150,-19935.40449558,0.00010899,2]
[333450597,1722137436159,-19935.40449558,0.00010899,2]
[333450598,1722137436168,-19935.40449558,0.00010899,2]
[333450599,1722137436178,-19935.40449558,0.00010899,2]
[333450600,1722137436187,-19935.40449558,0.00010899,2]
[333450601,1722137436197,-19935.40449558,0.00010899,2]
[333450602,1722137436207,-19935.40449558,0.00010899,2]
[333450603,1722137436216,-19935.40449558,0.00010899,2]
[333450604,1722137436225,-3636.35574088,0.00010899,2]
[333450605,1722137436235,-3636.35574088,0.00010899,2]
[333450606,1722137436245,-3636.35574088,0.00010899,2]
[333450607,1722137436256,-3636.35574088,0.00010899,2]
[333450608,1722137436266,-3636.35574088,0.00010899,2]
[333450609,1722137436275,-3636.35574088,0.00010899,2]
[333450610,1722137436284,-3636.35574088,0.00010899,2]
[333450611,1722137436294,-3636.35574088,0.00010899,2]
[333450612,1722137436303,-3636.35574088,0.00010899,2]
[333450613,1722137436313,-168.8587113,0.000109,2]
[333450614,1722137436323,-19935.40449558,0.000109,2]
[333450615,1722137436333,-3636.35574088,0.000109,2]
[333450616,1722137436342,-1000.0,0.000109,2]
[333450617,1722137436352,-199.07897629,0.000109,2]